bitfinex/quotes_SOLUSD_20250416
["timestamp","ask_amount","ask_price","bid_price","bid_amount"]
[1744762285603,26.0,125.93,125.89,27.12943124]
[1744762285821,26.0,125.93,125.91,19.18605156]
[1744762285998,26.0,125.93,125.89,7.94337968]
[1744762285999,11.8,125.96,125.92,19.18605156]
[1744762286341,26.0,125.94,125.93,19.18605156]
[1744762286529,254.0674,125.99,125.93,19.18605156]
[1744762286530,7.93713786,125.99,125.93,19.18605156]
[1744762286833,26.0,125.96,125.95,19.18605156]
[1744762287217,30.44964886,125.98,125.95,19.18605156]
[1744762287530,26.0,125.96,125.95,19.18605156]
[1744762287849,11.8,125.98,125.95,19.18605156]
[1744762288147,11.8,126.02,125.97,19.18605156]
[1744762288350,11.8,126.02,125.99,19.18605156]
[1744762288640,37.8,126.02,126.0,19.18605156]
[1744762288814,19.73545443,126.02,125.99,19.18605156]
[1744762289011,26.0,126.01,125.99,19.18605156]
[1744762289238,26.0,126.01,125.99,28.29847281]
[1744762289847,26.0,126.01,126.0,28.29847281]
[1744762290727,0.063,126.03,126.0,56.59694562]
[1744762291041,0.063,126.03,126.02,28.29847281]
[1744762291375,0.063,126.03,126.0,0.14216157]
[1744762291511,0.063,126.03,126.02,28.29847281]
[1744762293220,0.063,126.03,126.02,36.23372118]
[1744762293420,0.063,126.03,126.02,28.29847281]
[1744762293744,0.063,126.03,126.02,36.23372118]
[1744762294728,0.063,126.03,126.02,37.93538275]
[1744762295545,0.063,126.03,126.02,56.58503161]
[1744762295725,0.063,126.08,126.03,18.79181043]
[1744762295922,0.063,126.08,126.07,28.29847281]
[1744762297144,0.063,126.08,126.07,36.23057402]
[1744762297957,0.063,126.08,126.06,7.93246006]
[1744762298259,0.063,126.08,126.07,28.29847281]
[1744762299060,0.063,126.08,126.02,1.5595]
[1744762299255,54.36147281,126.08,126.03,28.29847281]
[1744762299453,26.063,126.08,126.04,28.29847281]
[1744762299654,26.063,126.08,126.07,28.29847281]
[1744762301143,0.063,126.08,126.07,36.37273559]
[1744762302436,0.063,126.08,126.07,28.29847281]
[1744762302869,0.063,126.08,126.07,36.23057402]
[1744762303641,0.063,126.08,126.07,36.37273559]
[1744762305356,0.063,126.08,126.07,55.02238445]
[1744762307175,1e-08,126.08,126.07,55.02238445]
[1744762309167,0.063,126.1,126.09,26.14216157]
[1744762309670,0.063,126.1,126.09,45.25671661]
[1744762311649,0.063,126.1,126.09,19.25671661]
[1744762311867,0.063,126.1,126.09,45.25671661]
[1744762312175,0.063,126.1,126.07,83.0]
[1744762312372,0.063,126.1,126.09,19.25671661]
[1744762313070,0.063,126.1,126.09,19.11455504]
[1744762313274,0.063,126.1,126.08,19.11455504]
[1744762314073,0.063,126.1,126.09,19.11455504]
[1744762314968,0.063,126.1,126.04,1.5735]
[1744762315146,0.063,126.1,126.06,19.11455504]
[1744762315347,7.99321411,126.1,126.06,19.11455504]
[1744762316677,7.99321411,126.1,126.05,0.14216157]
[1744762316869,27.10776915,126.1,126.06,0.14216157]
[1744762317777,7.99321411,126.1,126.07,19.11455504]
[1744762318350,0.063,126.1,126.08,19.11455504]
[1744762318587,0.063,126.1,126.09,19.11455504]
[1744762318881,19.17755504,126.12,126.07,19.11455504]
[1744762319177,19.11455504,126.09,126.04,19.11455504]
[1744762319347,19.11455504,126.07,126.02,102.11455504]
[1744762319768,19.11455504,126.07,126.03,0.14216157]
[1744762320166,19.11455504,126.08,126.03,19.11455504]
[1744762320450,19.11455504,126.08,126.04,0.14216157]
[1744762321482,7.93210121,126.07,126.04,0.14216157]
[1744762321660,46.87690928,126.07,126.02,102.11455504]
[1744762321861,19.11455504,126.04,126.01,0.03]
[1744762322054,19.11455504,126.03,126.01,0.03]
[1744762322258,63.7642039,126.02,126.01,1e-08]
[1744762323261,71.69945227,126.02,126.01,1e-08]
[1744762324289,45.69945227,126.02,126.01,1e-08]
[1744762324871,26.0,125.98,125.93,0.03]
[1744762325064,19.11455504,125.97,125.93,0.03]
[1744762325277,19.11455504,125.96,125.93,0.03]
[1744762325480,56.95455504,125.98,125.93,0.03]
[1744762325709,19.11455504,125.95,125.93,0.03]
[1744762325998,19.11455504,125.94,125.93,0.03]
[1744762326165,56.87875894,125.94,125.93,0.03]
[1744762326493,56.87875894,125.94,125.93,1e-08]
[1744762326494,86.33504796,125.94,125.93,1e-08]
[1744762326787,44.64964886,125.9,125.81,11.84]
[1744762326986,19.11455504,125.89,125.83,19.11455504]
[1744762327190,19.11455504,125.88,125.83,19.11455504]
[1744762327794,56.48964886,125.9,125.87,0.03]
[1744762327970,19.11455504,125.88,125.87,0.03]
[1744762328283,27.05862876,125.88,125.87,0.03]
[1744762328483,71.70827762,125.88,125.87,0.03]
[1744762329886,26.0,125.88,125.87,0.03]
[1744762330088,11.84,125.9,125.87,0.03]
[1744762330496,30.95455504,125.9,125.87,0.03]
[1744762330693,26.0,125.88,125.87,0.03]
[1744762330881,45.11455504,125.88,125.87,0.03]
[1744762331769,63.7642039,125.88,125.87,0.03]
[1744762331970,82.87875894,125.88,125.87,0.03]
[1744762332188,63.7642039,125.88,125.87,0.03]
[1744762332686,33.94407372,125.88,125.87,0.03]
[1744762333194,53.05862876,125.88,125.87,0.03]
[1744762333493,71.70827762,125.88,125.87,0.03]
[1744762333993,90.82283266,125.88,125.87,0.03]
[1744762334595,71.70827762,125.88,125.87,0.03]
[1744762337407,26.0,125.84,125.8,0.03]
[1744762337699,56.95455504,125.84,125.8,0.03]
[1744762338498,37.84,125.84,125.8,19.14455504]
[1744762338793,37.84,125.84,125.82,19.11455504]
[1744762338970,11.84,125.84,125.82,19.11455504]
[1744762339604,11.84,125.84,125.81,19.11455504]
[1744762339780,11.84,125.84,125.81,19.14455504]
[1744762340102,11.84,125.84,125.81,27.09260306]
[1744762340874,11.84,125.84,125.81,19.14455504]
[1744762341598,11.84,125.84,125.81,27.09300869]
[1744762342005,11.84,125.84,125.81,19.14455504]
[1744762342298,64.90129944,125.84,125.81,0.03]
[1744762342603,19.11455504,125.83,125.81,0.03]
[1744762342796,45.7867444,125.84,125.81,0.03]
[1744762342797,64.90129944,125.84,125.81,0.03]
[1744762343971,45.7867444,125.84,125.81,0.03]
[1744762344176,37.84,125.84,125.81,0.03]
[1744762344489,11.84,125.84,125.82,19.11455504]
[1744762346679,11.84,125.84,125.81,27.09278527]
[1744762347902,11.84,125.84,125.81,0.03]
[1744762350402,11.84,125.84,125.81,19.14455504]
[1744762350607,11.84,125.84,125.82,7.94786202]
[1744762352111,11.84,125.84,125.81,0.03]
[1744762352283,19.11455504,125.83,125.81,0.03]
[1744762352491,64.90131818,125.84,125.81,0.03]
[1744762352801,37.84,125.84,125.81,19.14455504]
[1744762353508,11.84,125.84,125.81,19.14455504]
[1744762353699,11.84,125.84,125.81,0.03]
[1744762354008,19.11455504,125.82,125.81,0.03]
[1744762354304,63.7642039,125.82,125.81,0.03]
[1744762354797,52.29426592,125.82,125.81,0.03]
[1744762355989,57.90636547,125.81,125.8,0.03]
[1744762356183,57.90636547,125.81,125.8,1e-08]
[1744762356690,57.7642039,125.81,125.8,1e-08]
[1744762358299,0.14216157,125.8,125.79,1e-08]
[1744762358485,37.7642039,125.8,125.79,1e-08]
[1744762358683,37.90636547,125.8,125.79,1e-08]
[1744762359397,26.0,125.78,125.77,2.8345729]
[1744762359601,57.01455504,125.78,125.77,2.8345729]
[1744762360395,64.50003842,125.78,125.77,2.8345729]
[1744762360596,83.61459346,125.78,125.77,2.8345729]
[1744762362310,103.75675503,125.78,125.77,2.8345729]
[1744762362613,83.61459346,125.78,125.77,2.8345729]
[1744762365317,64.50003842,125.78,125.77,2.8345729]
[1744762365491,83.61459346,125.78,125.77,2.8345729]
[1744762367102,64.50003842,125.78,125.77,2.8345729]
[1744762367303,76.52348013,125.78,125.77,2.8345729]
[1744762369428,18.79181043,125.77,125.75,3.29925755]
[1744762369617,18.64964886,125.75,125.73,0.03]
[1744762369808,56.67309057,125.74,125.73,0.03]
[1744762370124,68.57309057,125.74,125.73,0.03]
[1744762370535,76.52600929,125.74,125.73,0.03]
[1744762370695,57.87636043,125.74,125.73,0.03]
[1744762370901,26.0,125.72,125.7,12.02344171]
[1744762371333,11.9,125.74,125.7,12.02344171]
[1744762371509,37.9,125.74,125.7,12.02344171]
[1744762371834,11.9,125.74,125.73,12.02344171]
[1744762372920,11.9,125.74,125.72,19.97714493]
[1744762375833,11.9,125.74,125.71,19.97809539]
[1744762376022,11.9,125.74,125.71,12.02344171]
[1744762376208,11.9,125.74,125.7,7.95509572]
[1744762376404,11.9,125.74,125.67,45.89288034]
[1744762376405,26.0,125.71,125.66,0.03]
[1744762376604,12.02344171,125.69,125.66,0.03]
[1744762376906,26.0,125.7,125.66,0.03]
[1744762377102,38.02344171,125.7,125.66,0.03]
[1744762377522,26.0,125.67,125.66,0.03]
[1744762378430,56.67309057,125.67,125.66,0.03]
[1744762378605,64.63043918,125.67,125.66,0.03]
[1744762380029,52.60699747,125.67,125.66,0.03]
[1744762380332,33.95734861,125.67,125.66,0.03]
[1744762380635,38.63043918,125.67,125.66,0.03]
[1744762381434,38.63043918,125.67,125.57,14.5224668]
[1744762381435,26.0,125.63,125.57,14.5224668]
[1744762381645,26.0,125.63,125.59,12.02344171]
[1744762382236,26.0,125.63,125.57,14.5224668]
[1744762382440,26.0,125.63,125.59,12.02344171]
[1744762382815,11.86,125.64,125.6,12.02344171]
[1744762383020,11.86,125.64,125.62,12.02344171]
[1744762383324,11.86,125.64,125.61,12.02344171]
[1744762383733,11.86,125.64,125.6,12.02344171]
[1744762384561,23.88344171,125.64,125.59,12.02344171]
[1744762384925,11.86,125.64,125.6,12.02344171]
[1744762385241,11.86,125.64,125.61,12.02344171]
[1744762385635,11.86,125.64,125.62,12.02344171]
[1744762385941,27.95693638,125.68,125.64,0.14216157]
[1744762385942,11.88,125.68,125.64,0.14216157]
[1744762386142,19.62214171,125.71,125.67,12.02344171]
[1744762386143,18.64964886,125.71,125.67,12.02344171]
[1744762386345,12.02344171,125.7,125.65,12.02344171]
[1744762387028,30.67309057,125.71,125.66,19.98142356]
[1744762387348,63.9067826,125.71,125.66,27.21511559]
[1744762387652,37.9067826,125.71,125.67,19.25713374]
[1744762387823,63.9067826,125.71,125.66,27.21511559]
[1744762388223,19.25713374,125.7,125.66,7.95798185]
[1744762388425,63.9067826,125.71,125.66,27.21511559]
[1744762388922,19.25713374,125.7,125.66,7.95798185]
[1744762389123,19.39929531,125.69,125.61,7.96114959]
[1744762389318,26.0,125.66,125.62,19.25713374]
[1744762389547,11.88,125.67,125.64,19.25713374]
[1744762389931,26.0,125.69,125.66,19.25713374]
[1744762390134,11.88,125.71,125.67,19.25713374]
[1744762391221,11.88,125.71,125.68,7.95671546]
[1744762391546,0.063,125.72,125.7,19.25713374]
[1744762391751,0.063,125.72,125.71,19.25713374]
[1744762392048,0.063,125.72,125.68,27.84850412]
[1744762392049,0.063,125.72,125.69,19.25713374]
[1744762392433,0.063,125.72,125.71,19.25713374]
[1744762392632,0.063,125.72,125.71,19.39929531]
[1744762393156,0.063,125.72,125.71,27.35411195]
[1744762395452,0.063,125.72,125.71,27.21195038]
[1744762396066,0.063,125.72,125.71,27.35411195]
[1744762398253,0.063,125.72,125.71,7.95481664]
[1744762398456,0.063,125.72,125.7,19.25713374]
[1744762398873,0.063,125.72,125.67,6.212]
[1744762399050,0.063,125.72,125.69,19.25713374]
[1744762399255,0.063,125.72,125.68,19.25713374]
[1744762399768,0.063,125.72,125.68,27.21338598]
[1744762400160,0.063,125.72,125.68,7.95625224]
[1744762400471,0.063,125.72,125.68,27.21338598]
[1744762402150,0.063,125.72,125.71,19.25713374]
[1744762402560,0.063,125.72,125.71,19.39929531]
[1744762404571,11.943,125.78,125.72,0.14216157]
[1744762404745,11.943,125.78,125.76,19.25713374]
[1744762404943,11.943,125.78,125.75,19.25713374]
[1744762405270,19.25713374,125.77,125.72,19.25713374]
[1744762406466,7.95165394,125.76,125.72,19.25713374]
[1744762406680,7.95125367,125.77,125.73,19.25713374]
[1744762406886,57.20013374,125.78,125.75,19.25713374]
[1744762406887,11.943,125.78,125.75,19.25713374]
[1744762407086,11.943,125.78,125.73,0.14216157]
[1744762407087,11.943,125.78,125.76,19.25713374]
[1744762407375,11.943,125.78,125.76,12.01618963]
[1744762407796,0.063,125.78,125.77,12.01618963]
[1744762409271,0.063,125.78,125.77,19.22393651]
[1744762409576,0.063,125.78,125.76,19.22393651]
[1744762409760,0.063,125.78,125.77,19.22393651]
[1744762410072,0.063,125.78,125.76,19.22393651]
[1744762410282,0.063,125.78,125.75,8.09444785]
[1744762410572,0.063,125.78,125.74,19.22393651]
[1744762410873,0.063,125.78,125.73,7.95355126]
[1744762410874,0.063,125.78,125.75,19.22393651]
[1744762411075,0.063,125.78,125.74,19.22393651]
[1744762411272,19.28693651,125.78,125.73,27.17748777]
[1744762411474,19.22393651,125.77,125.72,27.17784639]
[1744762411891,19.22393651,125.77,125.73,19.22393651]
[1744762412182,19.22393651,125.77,125.72,27.17784639]
[1744762412394,19.22393651,125.77,125.72,19.22393651]
[1744762412573,39.09558723,125.77,125.72,27.17798046]
[1744762412888,11.92,125.77,125.75,19.22393651]
[1744762413077,11.92,125.77,125.74,19.22393651]
[1744762413390,11.92,125.77,125.72,27.8395037]
[1744762413576,11.92,125.77,125.75,19.22393651]
[1744762414094,11.92,125.77,125.74,19.22393651]
[1744762414581,11.92,125.77,125.75,19.22393651]
[1744762415496,0.063,125.78,125.76,19.22393651]
[1744762417389,0.063,125.78,125.76,27.17537954]
[1744762418263,0.063,125.78,125.76,19.22393651]
[1744762418468,0.063,125.78,125.76,27.17536345]
[1744762419615,0.063,125.78,125.77,19.22393651]
[1744762419783,0.063,125.78,125.77,19.36609808]
[1744762420185,0.063,125.78,125.77,19.22393651]
[1744762420402,0.063,125.78,125.77,0.14216157]
[1744762420611,0.063,125.78,125.77,19.36609808]
[1744762421711,0.063,125.78,125.77,27.31711978]
[1744762422207,0.063,125.78,125.72,19.88490966]
[1744762422401,0.063,125.78,125.72,45.88490966]
[1744762422712,0.063,125.78,125.75,19.22393651]
[1744762423216,0.063,125.78,125.74,19.22393651]
[1744762423792,8.01338956,125.78,125.74,19.22393651]
[1744762424110,27.23732607,125.78,125.73,19.22393651]
[1744762424315,19.22393651,125.77,125.72,19.22393651]
[1744762424488,20.73473651,125.77,125.72,19.22393651]
[1744762424688,26.82823651,125.77,125.72,19.22393651]
[1744762424890,19.22393651,125.75,125.71,19.22393651]
[1744762425816,11.92,125.76,125.71,27.178693]
[1744762426109,11.92,125.76,125.73,19.22393651]
[1744762428015,19.87169673,125.76,125.73,19.22393651]
[1744762428207,11.92,125.76,125.72,27.17774942]
[1744762429430,11.92,125.76,125.73,19.22393651]
[1744762429726,11.92,125.76,125.72,7.95381291]
[1744762429727,11.92,125.76,125.74,19.22393651]
[1744762429933,11.92,125.76,125.72,0.14216157]
[1744762430116,11.92,125.76,125.73,19.22393651]
[1744762430511,19.87186691,125.76,125.72,19.22393651]
[1744762431036,11.92,125.76,125.72,19.22393651]
[1744762431331,11.92,125.76,125.73,12.02236602]
[1744762432129,19.87166089,125.76,125.73,12.02236602]
[1744762432830,31.89402691,125.76,125.71,7.95480224]
[1744762433033,31.89402691,125.76,125.71,12.02236602]
[1744762434342,31.89402691,125.76,125.7,0.14216157]
[1744762434508,31.89402691,125.76,125.71,12.02236602]
[1744762434717,12.02236602,125.75,125.7,12.02236602]
[1744762435128,12.02236602,125.75,125.69,7.95608242]
[1744762435333,12.02236602,125.75,125.7,12.02236602]
[1744762436025,31.89402691,125.76,125.71,12.02236602]
[1744762436232,19.87166089,125.76,125.7,0.14216157]
[1744762436431,19.87166089,125.76,125.72,12.02236602]
[1744762437314,0.063,125.78,125.75,12.02236602]
[1744762437530,0.063,125.78,125.77,12.02236602]
[1744762440941,0.063,125.78,125.77,19.97338772]
[1744762443128,0.063,125.78,125.76,0.14216157]
[1744762443429,0.063,125.78,125.77,12.02236602]
[1744762444519,0.063,125.78,125.76,12.02236602]
[1744762445355,0.063,125.78,125.76,19.97375611]
[1744762446347,0.063,125.78,125.76,7.95139009]
[1744762446547,0.063,125.78,125.76,19.97375611]
[1744762447847,0.063,125.78,125.76,12.02236602]
[1744762448030,0.063,125.78,125.75,12.02236602]
[1744762448940,0.063,125.78,125.75,19.97450701]
[1744762450045,0.063,125.78,125.74,12.02236602]
[1744762450260,12.08536602,125.78,125.73,12.02236602]
[1744762450549,0.063,125.78,125.73,12.02236602]
[1744762450749,12.02236602,125.77,125.72,12.02236602]
[1744762451234,12.02236602,125.77,125.73,12.02236602]
[1744762452337,12.02236602,125.76,125.71,19.97701412]
[1744762452544,12.02236602,125.75,125.7,19.97757864]
[1744762453153,12.02236602,125.71,125.66,0.03]
[1744762453652,12.02236602,125.72,125.67,12.02236602]
[1744762453954,12.02236602,125.71,125.66,12.05236602]
[1744762454450,19.97723409,125.71,125.66,20.01003344]
[1744762454620,13.56336602,125.7,125.66,0.03]
[1744762454821,1.541,125.7,125.66,12.05236602]
[1744762456052,1.541,125.7,125.66,20.01030495]
[1744762456774,9.49659545,125.7,125.66,20.01030495]
[1744762457276,9.49659545,125.7,125.66,12.05236602]
[1744762457480,33.33896147,125.7,125.66,0.03]
[1744762457858,21.31659545,125.7,125.66,12.05236602]
[1744762459379,13.361,125.7,125.67,12.02236602]
[1744762459568,11.82,125.7,125.68,12.02236602]
[1744762459877,1.601,125.73,125.69,12.16452759]
[1744762460080,6.6192,125.74,125.71,12.02236602]
[1744762460586,11.82,125.75,125.72,12.02236602]
[1744762461068,11.82,125.75,125.7,0.14216157]
[1744762461269,19.77246639,125.75,125.72,12.02236602]
[1744762461470,11.82,125.75,125.72,12.02236602]
[1744762462575,19.77229316,125.75,125.72,12.02236602]
[1744762462780,19.77229316,125.75,125.7,8.09760751]
[1744762462983,19.77229316,125.75,125.71,12.02236602]
[1744762465973,19.77229316,125.75,125.66,0.03]
[1744762465974,26.0,125.71,125.66,0.03]
[1744762466172,37.92865507,125.7,125.66,0.03]
[1744762466483,11.68,125.7,125.67,12.02236602]
[1744762467162,11.68,125.7,125.66,0.17216157]
[1744762467389,11.68,125.7,125.66,38.05236602]
[1744762467785,19.63559392,125.7,125.66,39.56886336]
[1744762468174,11.68,125.7,125.66,13.56886336]
[1744762469289,11.68,125.7,125.66,0.03]
[1744762469496,19.63560643,125.7,125.66,13.56886336]
[1744762470291,19.63560643,125.7,125.66,0.03]
[1744762470596,34.82866979,125.7,125.66,0.03]
[1744762471664,13.3342,125.7,125.68,13.53886336]
[1744762471871,11.68,125.7,125.68,13.53886336]
[1744762472065,11.68,125.7,125.67,13.53886336]
[1744762472390,11.68,125.7,125.66,0.03]
[1744762472391,19.63558265,125.7,125.66,13.56886336]
[1744762474005,19.63558265,125.7,125.66,0.03]
[1744762474162,33.17444601,125.7,125.66,0.03]
[1744762474888,8.2231,125.73,125.68,13.53886336]
[1744762475083,47.76196336,125.73,125.68,13.53886336]
[1744762475595,47.76196336,125.73,125.67,13.53886336]
[1744762476007,21.49328758,125.72,125.67,21.4960337]
[1744762476994,7.95442422,125.72,125.67,21.4960337]
[1744762477181,42.17693734,125.73,125.69,13.53886336]
[1744762478691,1.5703,125.76,125.72,13.53886336]
[1744762478905,9.52201399,125.76,125.73,13.53886336]
[1744762479080,9.52201399,125.76,125.72,13.53886336]
[1744762479778,13.53886336,125.74,125.69,7.95604203]
[1744762480185,21.49228544,125.74,125.69,21.49490539]
[1744762480379,7.95342208,125.74,125.7,13.53886336]
[1744762480693,47.49143521,125.75,125.7,13.53886336]
[1744762480891,26.0,125.75,125.71,13.53886336]
[1744762481088,26.0,125.75,125.7,13.68102493]
[1744762481499,39.53886336,125.75,125.7,13.68102493]
[1744762482100,21.49124849,125.75,125.7,21.49405133]
[1744762483103,21.49124849,125.75,125.69,8.09824171]
[1744762483278,13.53886336,125.74,125.69,21.63710507]
[1744762483789,13.53886336,125.74,125.69,8.09824171]
[1744762484087,13.53886336,125.74,125.69,21.63710507]
[1744762484389,21.49219867,125.74,125.69,21.63710507]
[1744762485289,21.49219867,125.74,125.69,8.09824171]
[1744762485490,13.53886336,125.73,125.68,13.53886336]
[1744762487405,13.53886336,125.74,125.69,7.95608242]
[1744762487607,13.53886336,125.74,125.68,21.49528995]
[1744762488689,21.49241462,125.73,125.68,21.49528995]
[1744762489826,21.49241462,125.73,125.69,0.14216157]
[1744762490119,33.17208152,125.74,125.69,13.68102493]
[1744762491313,33.17208152,125.74,125.7,7.95544948]
[1744762491512,11.68,125.74,125.71,13.53886336]
[1744762492890,11.68,125.74,125.71,21.49335718]
[1744762493391,11.68,125.74,125.72,13.53886336]
[1744762494334,18.71264886,125.78,125.73,13.68102493]
[1744762494335,0.063,125.78,125.73,13.68102493]
[1744762494508,0.063,125.78,125.77,13.53886336]
[1744762494920,0.063,125.78,125.77,7.9510217]
[1744762495126,0.063,125.78,125.77,21.48988506]
[1744762495431,0.063,125.78,125.73,7.95355126]
[1744762495626,0.063,125.78,125.75,13.53886336]
[1744762495824,0.063,125.78,125.76,13.53886336]
[1744762496024,0.063,125.78,125.77,13.53886336]
[1744762497139,0.063,125.78,125.77,21.48988506]
[1744762497321,0.063,125.78,125.77,21.63204663]
[1744762498445,0.063,125.78,125.77,8.09318327]
[1744762498644,0.063,125.78,125.77,21.63204663]
[1744762503458,6.4197,125.78,125.74,7.95291872]
[1744762503629,6.4197,125.78,125.75,13.53886336]
[1744762503957,0.063,125.78,125.76,13.53886336]
[1744762504132,0.063,125.78,125.77,13.68102493]
[1744762505051,0.063,125.78,125.77,21.63204663]
[1744762506458,0.063,125.83,125.78,18.79181043]
[1744762506631,0.063,125.83,125.82,13.68102493]
[1744762507153,0.063,125.83,125.82,21.62888695]
[1744762507349,0.063,125.83,125.82,21.5918327]
[1744762508534,0.063,125.83,125.82,8.09002359]
[1744762508735,0.063,125.83,125.81,13.50180911]
[1744762508943,0.063,125.83,125.8,13.50180911]
[1744762509146,19.59730911,125.82,125.77,13.50180911]
[1744762509657,13.50180911,125.81,125.77,13.50180911]
[1744762510354,6.0955,125.82,125.78,13.50180911]
[1744762510552,6.0955,125.82,125.8,13.50180911]
[1744762511034,11.763,125.83,125.8,13.50180911]
[1744762511235,11.763,125.83,125.81,13.50180911]
[1744762511959,0.063,125.83,125.81,13.50180911]
[1744762512255,0.063,125.83,125.79,13.64397068]
[1744762512438,0.063,125.83,125.8,13.50180911]
[1744762512637,0.063,125.83,125.81,13.50180911]
[1744762512828,0.063,125.83,125.82,13.64397068]
[1744762513258,0.063,125.83,125.82,21.74552514]
[1744762514560,0.063,125.83,125.81,29.55167546]
[1744762514865,0.063,125.83,125.82,21.60336357]
[1744762515160,0.063,125.83,125.81,21.60336357]
[1744762515468,0.063,125.83,125.8,21.60336357]
[1744762515841,0.063,125.83,125.8,21.61571003]
[1744762517783,0.063,125.83,125.8,29.56450715]
[1744762517960,0.063,125.83,125.81,21.61571003]
[1744762518291,0.063,125.83,125.82,21.61571003]
[1744762518458,0.063,125.9,125.86,0.14216157]
[1744762518658,0.063,125.9,125.89,21.7578716]
[1744762519072,0.063,125.9,125.87,26.0]
[1744762519287,0.063,125.9,125.86,0.14216157]
[1744762519288,0.063,125.9,125.88,21.61571003]
[1744762519474,0.063,125.9,125.89,21.7578716]
[1744762519886,0.063,125.9,125.89,29.70131428]
[1744762522592,0.063,125.9,125.88,29.5595679]
[1744762523485,0.063,125.9,125.89,21.61571003]
[1744762523657,0.063,125.9,125.89,21.7578716]
[1744762524492,0.063,125.9,125.89,29.70131428]
[1744762526675,0.063,125.9,125.89,29.55915271]
[1744762526870,0.063,125.9,125.88,29.55955562]
[1744762528091,0.063,125.9,125.86,21.61571003]
[1744762528290,1.6881,125.9,125.86,21.61571003]
[1744762528987,1.6881,125.9,125.89,21.61571003]
[1744762529194,0.063,125.9,125.89,21.61571003]
[1744762529592,0.063,125.9,125.89,21.7578716]
[1744762530089,0.063,125.9,125.89,29.70131428]
[1744762530291,1e-08,125.9,125.89,74.35096314]
[1744762530468,0.063,125.91,125.9,0.14216157]
[1744762530791,0.063,125.91,125.9,21.7578716]
[1744762532074,0.063,125.91,125.9,29.55852178]
[1744762532576,0.063,125.91,125.85,20.23664886]
[1744762532577,1.6822,125.91,125.84,83.0]
[1744762532793,21.61571003,125.89,125.83,7.94723039]
[1744762533095,21.61571003,125.85,125.81,7.94818029]
[1744762533396,39.70801003,125.86,125.81,29.56389032]
[1744762533994,18.0923,125.86,125.83,21.61571003]
[1744762534176,18.0923,125.86,125.83,29.56265063]
[1744762534379,39.70801003,125.86,125.83,7.9469406]
[1744762534982,18.0923,125.86,125.83,7.9469406]
[1744762535291,18.0923,125.86,125.83,29.56265063]
[1744762536191,18.0923,125.86,125.83,7.9469406]
[1744762536370,26.03780646,125.86,125.82,29.56338031]
[1744762536571,47.65351649,125.86,125.81,21.61571003]
[1744762537097,39.70801003,125.86,125.81,21.61571003]
[1744762537276,18.0923,125.86,125.84,21.61571003]
[1744762537594,11.9,125.86,125.83,21.61571003]
[1744762538198,11.9,125.86,125.84,7.94659885]
[1744762538372,11.9,125.86,125.84,29.56230888]
[1744762539098,11.9,125.86,125.85,21.61571003]
[1744762539395,11.9,125.86,125.85,21.7578716]
[1744762539600,6.6182,125.89,125.85,21.7578716]
[1744762539787,13.5822,125.91,125.88,21.61571003]
[1744762540602,13.5822,125.91,125.89,7.94344268]
[1744762540901,13.5822,125.91,125.88,29.55953033]
[1744762541079,13.5822,125.91,125.88,21.61571003]
[1744762541390,43.14026721,125.91,125.86,29.56073116]
[1744762541605,21.61571003,125.89,125.84,7.94659885]
[1744762541772,27.68401003,125.87,125.83,29.56264124]
[1744762541977,21.61571003,125.86,125.82,21.61571003]
[1744762542177,27.68401003,125.87,125.82,21.61571003]
[1744762542785,6.0683,125.87,125.84,21.61571003]
[1744762544382,6.0683,125.87,125.85,21.61571003]
[1744762545091,6.0683,125.87,125.85,29.56134728]
[1744762545402,6.0683,125.87,125.85,7.94563725]
[1744762545575,6.0683,125.87,125.85,21.61571003]
[1744762545783,27.68401003,125.87,125.8,45.87227744]
[1744762546086,6.0683,125.87,125.83,21.61571003]
[1744762546283,14.01310771,125.87,125.83,21.61571003]
[1744762546480,11.9,125.86,125.82,21.61571003]
[1744762546792,23.23211003,125.85,125.8,21.61571003]